[Event "Titled Tuesday Blitz April 4 Early 2023"]
[White "Florescu, Codrut-Constantin"]
[Black "Skaric, Djuro"]
[WhiteFideId "1202200"]
[BlackFideId "934569"]
[WhiteElo "2191"]
[BlackElo "2282"]
[Result "1-0"]
[Round "07"]
[TimeControl "180+2"]
[Date "2023.04.04"]
[WhiteClock "0:01:05"]
[BlackClock "0:00:53"]

1. e4 {[%clk 0:02:33]}  d6 {[%clk 0:03:00]} 2. d4 {[%clk 0:02:33]}  g6 {[%clk 0:02:56]} 3. Nc3 {[%clk 0:02:32]}  Bg7 {[%clk 0:02:56]} 4. Bg5 {[%clk 0:02:33]}  Nf6 {[%clk 0:02:54]} 5. Qd2 {[%clk 0:02:31]}  h6 {[%clk 0:02:54]} 6. Bh4 {[%clk 0:02:31]}  O-O {[%clk 0:02:54]} 7. Be2 {[%clk 0:02:29]}  Nc6 {[%clk 0:02:54]} 8. O-O-O {[%clk 0:02:26]}  a6 {[%clk 0:02:53]} 9. f4 {[%clk 0:02:21]}  b5 {[%clk 0:02:45]} 10. a3 {[%clk 0:02:20]}  Bb7 {[%clk 0:02:35]} 11. e5 {[%clk 0:02:20]}  dxe5 {[%clk 0:02:35]} 12. dxe5 {[%clk 0:02:20]}  Qxd2+ {[%clk 0:02:33]} 13. Rxd2 {[%clk 0:02:20]}  Nh5 {[%clk 0:02:29]} 14. Bxh5 {[%clk 0:02:19]}  gxh5 {[%clk 0:02:28]} 15. Nf3 {[%clk 0:02:19]}  Rfd8 {[%clk 0:02:21]} 16. Rhd1 {[%clk 0:02:18]}  Rxd2 {[%clk 0:02:18]} 17. Rxd2 {[%clk 0:02:19]}  Rd8 {[%clk 0:02:17]} 18. Rxd8+ {[%clk 0:02:18]}  Nxd8 {[%clk 0:02:18]} 19. Bxe7 {[%clk 0:02:18]}  Ne6 {[%clk 0:02:18]} 20. Ne2 {[%clk 0:02:11]}  Bxf3 {[%clk 0:02:14]} 21. gxf3 {[%clk 0:02:11]}  Kh7 {[%clk 0:02:12]} 22. f5 {[%clk 0:02:09]}  Ng5 {[%clk 0:02:05]} 23. f4 {[%clk 0:02:06]}  Nf3 {[%clk 0:02:00]} 24. f6 {[%clk 0:02:04]}  Bh8 {[%clk 0:01:54]} 25. h3 {[%clk 0:02:03]}  Kg6 {[%clk 0:01:54]} 26. c4 {[%clk 0:01:24]}  Kf5 {[%clk 0:01:50]} 27. cxb5 {[%clk 0:01:22]}  axb5 {[%clk 0:01:50]} 28. b3 {[%clk 0:01:23]}  c6 {[%clk 0:01:33]} 29. a4 {[%clk 0:01:22]}  Ke6 {[%clk 0:01:29]} 30. a5 {[%clk 0:01:20]}  Kd7 {[%clk 0:01:29]} 31. Kc2 {[%clk 0:01:18]}  Kc7 {[%clk 0:01:20]} 32. Kd3 {[%clk 0:01:16]}  Ne1+ {[%clk 0:01:18]} 33. Ke4 {[%clk 0:01:16]}  Nc2 {[%clk 0:01:15]} 34. b4 {[%clk 0:01:13]}  Na3 {[%clk 0:01:12]} 35. Ng3 {[%clk 0:01:12]}  c5 {[%clk 0:00:59]} 36. Bxc5 {[%clk 0:01:10]}  Kc6 {[%clk 0:00:59]} 37. Nf5 {[%clk 0:01:09]}  Nc4 {[%clk 0:00:53]} 38. Nd4+ {[%clk 0:01:06]}  Kb7 {[%clk 0:00:53]} 39. Nxb5 {[%clk 0:01:05]} 1-0


[Site "https://www.chess.com"]

[Event "Titled Tuesday Blitz April 4 Early 2023"]
[White "Ansh M Shah"]
[Black "Kozin, Yuri"]
[WhiteFideId "25033379"]
[BlackFideId "4129920"]
[WhiteElo "2084"]
[BlackElo "2564"]
[Result "1-0"]
[Round "07"]
[TimeControl "180+2"]
[Date "2023.04.04"]
[WhiteClock "0:00:54"]
[BlackClock "0:00:05"]

1. d4 {[%clk 0:03:00]}  d5 {[%clk 0:02:59]} 2. c4 {[%clk 0:03:01]}  c6 {[%clk 0:02:59]} 3. cxd5 {[%clk 0:03:02]}  cxd5 {[%clk 0:03:00]} 4. Nc3 {[%clk 0:03:02]}  Nf6 {[%clk 0:02:59]} 5. Bf4 {[%clk 0:03:03]}  Nc6 {[%clk 0:02:59]} 6. e3 {[%clk 0:03:03]}  a6 {[%clk 0:02:57]} 7. Nf3 {[%clk 0:03:03]}  Bg4 {[%clk 0:02:54]} 8. Rc1 {[%clk 0:03:04]}  Bxf3 {[%clk 0:02:50]} 9. gxf3 {[%clk 0:03:04]}  e6 {[%clk 0:02:49]} 10. Qb3 {[%clk 0:03:04]}  Bd6 {[%clk 0:01:50]} 11. Bxd6 {[%clk 0:02:57]}  Qxd6 {[%clk 0:01:49]} 12. Qxb7 {[%clk 0:02:57]}  O-O {[%clk 0:01:47]} 13. Nxd5 {[%clk 0:02:58]}  Qxd5 {[%clk 0:01:38]} 14. Qxc6 {[%clk 0:02:57]}  Qxa2 {[%clk 0:01:38]} 15. Qc3 {[%clk 0:02:52]}  Rfb8 {[%clk 0:01:28]} 16. Bc4 {[%clk 0:02:23]}  Qxb2 {[%clk 0:01:24]} 17. Qxb2 {[%clk 0:02:23]}  Rxb2 {[%clk 0:01:25]} 18. Bxa6 {[%clk 0:02:24]}  g6 {[%clk 0:00:50]} 19. Bd3 {[%clk 0:02:22]}  Ra3 {[%clk 0:00:44]} 20. Be4 {[%clk 0:02:07]}  Raa2 {[%clk 0:00:25]} 21. O-O {[%clk 0:02:06]}  Kg7 {[%clk 0:00:20]} 22. Bb1 {[%clk 0:01:47]}  Ra1 {[%clk 0:00:16]} 23. Bd3 {[%clk 0:01:41]}  Raa2 {[%clk 0:00:16]} 24. Bc4 {[%clk 0:01:40]}  Ra4 {[%clk 0:00:14]} 25. Kg2 {[%clk 0:01:30]}  g5 {[%clk 0:00:14]} 26. h3 {[%clk 0:01:28]}  h5 {[%clk 0:00:14]} 27. Bd3 {[%clk 0:01:26]}  Ra3 {[%clk 0:00:14]} 28. Rc2 {[%clk 0:01:18]}  Rbb3 {[%clk 0:00:09]} 29. Bc4 {[%clk 0:01:16]}  Rc3 {[%clk 0:00:08]} 30. Rfc1 {[%clk 0:01:14]}  Rxc2 {[%clk 0:00:07]} 31. Rxc2 {[%clk 0:01:15]}  g4 {[%clk 0:00:07]} 32. hxg4 {[%clk 0:01:15]}  hxg4 {[%clk 0:00:08]} 33. fxg4 {[%clk 0:01:13]}  Nxg4 {[%clk 0:00:09]} 34. Be2 {[%clk 0:01:12]}  Nf6 {[%clk 0:00:07]} 35. Bf3 {[%clk 0:01:12]}  Kg6 {[%clk 0:00:07]} 36. Rb2 {[%clk 0:01:09]}  Rc3 {[%clk 0:00:06]} 37. Ra2 {[%clk 0:01:08]}  Nh7 {[%clk 0:00:07]} 38. Be4+ {[%clk 0:01:07]}  Kg7 {[%clk 0:00:07]} 39. Bxh7 {[%clk 0:01:07]}  Kxh7 {[%clk 0:00:08]} 40. Kf3 {[%clk 0:01:07]}  Kg7 {[%clk 0:00:08]} 41. Ke4 {[%clk 0:01:08]}  Kf6 {[%clk 0:00:08]} 42. f4 {[%clk 0:01:06]}  Rc1 {[%clk 0:00:08]} 43. Rh2 {[%clk 0:01:06]}  Rd1 {[%clk 0:00:08]} 44. Rh6+ {[%clk 0:01:06]}  Kg7 {[%clk 0:00:08]} 45. Rh5 {[%clk 0:01:07]}  Kf6 {[%clk 0:00:08]} 46. f5 {[%clk 0:01:05]}  Rf1 {[%clk 0:00:07]} 47. Rh6+ {[%clk 0:00:54]}  Kg5 {[%clk 0:00:05]} 48. fxe6 {[%clk 0:00:54]} 1-0


[Site "https://www.chess.com"]

[Event "Titled Tuesday Blitz April 4 Early 2023"]
[White "I_KID_you_not"]
[Black "Thecourseoisildur"]
[WhiteElo "2333"]
[BlackElo "2502"]
[Result "1-0"]
[Round "07"]
[TimeControl "180+2"]
[Date "2023.04.04"]
[WhiteClock "0:00:22"]
[BlackClock "0:00:15"]

1. e4 {[%clk 0:03:00]}  c5 {[%clk 0:02:58]} 2. Nc3 {[%clk 0:03:01]}  Nc6 {[%clk 0:02:58]} 3. Bb5 {[%clk 0:03:01]}  Nd4 {[%clk 0:02:57]} 4. Nf3 {[%clk 0:03:02]}  Nxb5 {[%clk 0:02:56]} 5. Nxb5 {[%clk 0:03:02]}  d6 {[%clk 0:02:56]} 6. d4 {[%clk 0:03:03]}  Nf6 {[%clk 0:02:55]} 7. Qd3 {[%clk 0:02:57]}  a6 {[%clk 0:02:43]} 8. Nc3 {[%clk 0:02:57]}  cxd4 {[%clk 0:02:42]} 9. Nxd4 {[%clk 0:02:53]}  e5 {[%clk 0:02:40]} 10. Nf5 {[%clk 0:02:48]}  d5 {[%clk 0:02:20]} 11. Nxd5 {[%clk 0:02:31]}  Nxd5 {[%clk 0:01:47]} 12. exd5 {[%clk 0:02:30]}  Bxf5 {[%clk 0:01:46]} 13. Qxf5 {[%clk 0:02:30]}  Qxd5 {[%clk 0:01:46]} 14. O-O {[%clk 0:02:30]}  Bd6 {[%clk 0:01:44]} 15. Be3 {[%clk 0:02:20]}  O-O {[%clk 0:01:42]} 16. Rfd1 {[%clk 0:02:19]}  Qc6 {[%clk 0:01:40]} 17. c4 {[%clk 0:02:18]}  Rfe8 {[%clk 0:01:22]} 18. g3 {[%clk 0:02:07]}  Bf8 {[%clk 0:01:19]} 19. b3 {[%clk 0:02:03]}  a5 {[%clk 0:01:18]} 20. Qd7 {[%clk 0:02:03]}  Qg6 {[%clk 0:01:13]} 21. Qxb7 {[%clk 0:02:00]}  h5 {[%clk 0:01:10]} 22. h4 {[%clk 0:01:55]}  Be7 {[%clk 0:01:07]} 23. Qg2 {[%clk 0:01:42]}  e4 {[%clk 0:01:04]} 24. Rd5 {[%clk 0:01:40]}  f5 {[%clk 0:01:00]} 25. Rad1 {[%clk 0:01:36]}  Red8 {[%clk 0:00:57]} 26. Qh3 {[%clk 0:01:29]}  Rxd5 {[%clk 0:00:47]} 27. Rxd5 {[%clk 0:01:28]}  Rf8 {[%clk 0:00:47]} 28. Kh2 {[%clk 0:01:18]}  a4 {[%clk 0:00:31]} 29. c5 {[%clk 0:01:18]}  a3 {[%clk 0:00:29]} 30. Rd7 {[%clk 0:01:15]}  Bf6 {[%clk 0:00:24]} 31. c6 {[%clk 0:01:14]}  Be5 {[%clk 0:00:23]} 32. c7 {[%clk 0:01:01]}  Qe6 {[%clk 0:00:23]} 33. Rd8 {[%clk 0:00:57]}  Bxc7 {[%clk 0:00:23]} 34. Rxf8+ {[%clk 0:00:57]}  Kxf8 {[%clk 0:00:24]} 35. Bc5+ {[%clk 0:00:56]}  Kf7 {[%clk 0:00:24]} 36. Bxa3 {[%clk 0:00:57]}  g6 {[%clk 0:00:24]} 37. Qf1 {[%clk 0:00:53]}  e3 {[%clk 0:00:21]} 38. fxe3 {[%clk 0:00:50]}  Qe5 {[%clk 0:00:21]} 39. Qf2 {[%clk 0:00:47]}  Qe4 {[%clk 0:00:16]} 40. Bb2 {[%clk 0:00:43]}  Qxh4+ {[%clk 0:00:16]} 41. Kg2 {[%clk 0:00:43]}  Qe4+ {[%clk 0:00:17]} 42. Qf3 {[%clk 0:00:36]}  Qc2+ {[%clk 0:00:16]} 43. Qf2 {[%clk 0:00:36]}  Qe4+ {[%clk 0:00:16]} 44. Qf3 {[%clk 0:00:36]}  Qb1 {[%clk 0:00:16]} 45. Qf2 {[%clk 0:00:37]}  Bb6 {[%clk 0:00:15]} 46. Bd4 {[%clk 0:00:36]}  Qe4+ {[%clk 0:00:14]} 47. Qf3 {[%clk 0:00:36]}  Qc2+ {[%clk 0:00:10]} 48. Qf2 {[%clk 0:00:37]}  Qc6+ {[%clk 0:00:10]} 49. Qf3 {[%clk 0:00:36]}  Qc2+ {[%clk 0:00:10]} 50. Qf2 {[%clk 0:00:36]}  Qc7 {[%clk 0:00:10]} 51. Bxb6 {[%clk 0:00:35]}  Qxb6 {[%clk 0:00:11]} 52. Qf3 {[%clk 0:00:30]}  Qa5 {[%clk 0:00:08]} 53. a4 {[%clk 0:00:29]}  Qd2+ {[%clk 0:00:08]} 54. Kh3 {[%clk 0:00:30]}  Qe1 {[%clk 0:00:07]} 55. e4 {[%clk 0:00:21]}  Kg7 {[%clk 0:00:08]} 56. exf5 {[%clk 0:00:21]}  g5 {[%clk 0:00:06]} 57. Qxh5 {[%clk 0:00:19]}  Qh1+ {[%clk 0:00:06]} 58. Kg4 {[%clk 0:00:20]}  Qd1+ {[%clk 0:00:07]} 59. Kxg5 {[%clk 0:00:20]}  Qxh5+ {[%clk 0:00:08]} 60. Kxh5 {[%clk 0:00:20]}  Kf6 {[%clk 0:00:07]} 61. g4 {[%clk 0:00:20]}  Ke5 {[%clk 0:00:08]} 62. g5 {[%clk 0:00:21]}  Kxf5 {[%clk 0:00:08]} 63. g6 {[%clk 0:00:21]}  Ke5 {[%clk 0:00:09]} 64. Kh6 {[%clk 0:00:22]}  Kd4 {[%clk 0:00:10]} 65. g7 {[%clk 0:00:23]}  Kc3 {[%clk 0:00:11]} 66. g8=Q {[%clk 0:00:23]}  Kb4 {[%clk 0:00:11]} 67. Qc4+ {[%clk 0:00:23]}  Ka3 {[%clk 0:00:12]} 68. a5 {[%clk 0:00:23]}  Kb2 {[%clk 0:00:12]} 69. b4 {[%clk 0:00:23]}  Ka3 {[%clk 0:00:12]} 70. b5 {[%clk 0:00:23]}  Kb2 {[%clk 0:00:13]} 71. b6 {[%clk 0:00:23]}  Ka3 {[%clk 0:00:14]} 72. a6 {[%clk 0:00:24]}  Kb2 {[%clk 0:00:14]} 73. a7 {[%clk 0:00:24]}  Ka3 {[%clk 0:00:15]} 74. b7 {[%clk 0:00:25]}  Kb2 {[%clk 0:00:15]} 75. a8=N {[%clk 0:00:24]}  Ka3 {[%clk 0:00:14]} 76. b8=N {[%clk 0:00:23]}  Kb2 {[%clk 0:00:14]} 77. Qd3 {[%clk 0:00:23]}  Ka1 {[%clk 0:00:14]} 78. Qe2 {[%clk 0:00:23]}  Kb1 {[%clk 0:00:14]} 79. Nb6 {[%clk 0:00:22]}  Ka1 {[%clk 0:00:15]} 80. Nc4 {[%clk 0:00:22]}  Kb1 {[%clk 0:00:15]} 81. Qb2# {[%clk 0:00:22]} 1-0


[Site "https://www.chess.com"]

[Event "Titled Tuesday Blitz April 4 Early 2023"]
[White "Golubev, Mikhail"]
[Black "Fernandez Siles, Luis"]
[WhiteFideId "14100983"]
[BlackFideId "2209420"]
[WhiteElo "2374"]
[BlackElo "2195"]
[Result "1/2-1/2"]
[Round "07"]
[TimeControl "180+2"]
[Date "2023.04.04"]
[WhiteClock "0:00:02"]
[BlackClock "0:00:14"]

1. e4 {[%clk 0:03:00]}  c5 {[%clk 0:02:59]} 2. Nf3 {[%clk 0:03:00]}  Nc6 {[%clk 0:02:59]} 3. Nc3 {[%clk 0:02:59]}  g6 {[%clk 0:02:55]} 4. d4 {[%clk 0:02:59]}  cxd4 {[%clk 0:02:56]} 5. Nxd4 {[%clk 0:02:59]}  Bg7 {[%clk 0:02:57]} 6. Be3 {[%clk 0:02:59]}  Nf6 {[%clk 0:02:57]} 7. Nxc6 {[%clk 0:02:59]}  bxc6 {[%clk 0:02:53]} 8. e5 {[%clk 0:02:57]}  Ng8 {[%clk 0:02:52]} 9. Bd4 {[%clk 0:02:55]}  Qa5 {[%clk 0:02:47]} 10. f4 {[%clk 0:02:52]}  Nh6 {[%clk 0:02:31]} 11. e6 {[%clk 0:02:49]}  f6 {[%clk 0:02:16]} 12. exd7+ {[%clk 0:02:39]}  Bxd7 {[%clk 0:02:17]} 13. Bc4 {[%clk 0:02:38]}  Rd8 {[%clk 0:02:02]} 14. Qe2 {[%clk 0:02:16]}  Bg4 {[%clk 0:01:53]} 15. Qe4 {[%clk 0:02:09]}  Nf5 {[%clk 0:01:30]} 16. Qxc6+ {[%clk 0:01:48]}  Kf8 {[%clk 0:01:30]} 17. Bc5 {[%clk 0:01:20]}  Nd6 {[%clk 0:01:11]} 18. Bxd6 {[%clk 0:01:17]}  Rxd6 {[%clk 0:01:11]} 19. Qe4 {[%clk 0:00:51]}  f5 {[%clk 0:01:05]} 20. Qe3 {[%clk 0:00:21]}  Bd4 {[%clk 0:00:59]} 21. Qg3 {[%clk 0:00:19]}  h5 {[%clk 0:00:56]} 22. h4 {[%clk 0:00:12]}  Kg7 {[%clk 0:00:50]} 23. Rd1 {[%clk 0:00:11]}  Rc8 {[%clk 0:00:49]} 24. Rxd4 {[%clk 0:00:10]}  Rxd4 {[%clk 0:00:49]} 25. Bd3 {[%clk 0:00:08]}  Rxc3 {[%clk 0:00:46]} 26. bxc3 {[%clk 0:00:07]}  Qxc3+ {[%clk 0:00:46]} 27. Kf2 {[%clk 0:00:07]}  Qd2+ {[%clk 0:00:44]} 28. Kg1 {[%clk 0:00:08]}  Rxf4 {[%clk 0:00:42]} 29. Kh2 {[%clk 0:00:07]}  Rf2 {[%clk 0:00:40]} 30. Qe5+ {[%clk 0:00:07]}  Kf8 {[%clk 0:00:37]} 31. Qh8+ {[%clk 0:00:06]}  Kf7 {[%clk 0:00:37]} 32. Bc4+ {[%clk 0:00:05]}  e6 {[%clk 0:00:37]} 33. Qh7+ {[%clk 0:00:05]}  Kf8 {[%clk 0:00:36]} 34. Qh8+ {[%clk 0:00:04]}  Kf7 {[%clk 0:00:33]} 35. Qh7+ {[%clk 0:00:04]}  Kf8 {[%clk 0:00:26]} 36. Qh8+ {[%clk 0:00:04]}  Ke7 {[%clk 0:00:22]} 37. Qg7+ {[%clk 0:00:04]}  Kd6 {[%clk 0:00:22]} 38. Qf8+ {[%clk 0:00:04]}  Ke5 {[%clk 0:00:18]} 39. Qb8+ {[%clk 0:00:03]}  Kf6 {[%clk 0:00:16]} 40. Qf8+ {[%clk 0:00:02]}  Ke5 {[%clk 0:00:16]} 41. Qb8+ {[%clk 0:00:02]}  Kf6 {[%clk 0:00:14]} 42. Qf8+ {[%clk 0:00:02]}  Ke5 {[%clk 0:00:14]} 1/2-1/2


[Site "https://www.chess.com"]

[Event "Titled Tuesday Blitz April 4 Early 2023"]
[White "Reprintsev, Alexander"]
[Black "ibove"]
[WhiteFideId "14100541"]
[WhiteElo "2211"]
[BlackElo "2322"]
[Result "1-0"]
[Round "07"]
[TimeControl "180+2"]
[Date "2023.04.04"]
[WhiteClock "0:02:05"]
[BlackClock "0:01:27"]

1. e4 {[%clk 0:03:00]}  c5 {[%clk 0:02:57]} 2. b3 {[%clk 0:03:00]}  d6 {[%clk 0:02:56]} 3. Bb2 {[%clk 0:02:59]}  Nc6 {[%clk 0:02:57]} 4. f4 {[%clk 0:02:58]}  e5 {[%clk 0:02:56]} 5. Qf3 {[%clk 0:02:57]}  Nf6 {[%clk 0:02:47]} 6. Bb5 {[%clk 0:02:56]}  Qc7 {[%clk 0:02:43]} 7. Nc3 {[%clk 0:02:52]}  Bd7 {[%clk 0:02:43]} 8. Bxc6 {[%clk 0:02:47]}  Bxc6 {[%clk 0:02:43]} 9. d3 {[%clk 0:02:47]}  Be7 {[%clk 0:02:36]} 10. Nge2 {[%clk 0:02:47]}  O-O-O {[%clk 0:02:35]} 11. O-O {[%clk 0:02:46]}  h6 {[%clk 0:02:29]} 12. fxe5 {[%clk 0:02:41]}  dxe5 {[%clk 0:02:29]} 13. Ng3 {[%clk 0:02:41]}  g6 {[%clk 0:02:24]} 14. Rf2 {[%clk 0:02:34]}  Rhf8 {[%clk 0:02:23]} 15. Nf1 {[%clk 0:02:34]}  Nh5 {[%clk 0:02:22]} 16. Ne3 {[%clk 0:02:31]}  f5 {[%clk 0:02:22]} 17. Ned5 {[%clk 0:02:30]}  Bxd5 {[%clk 0:02:11]} 18. Nxd5 {[%clk 0:02:25]}  Rxd5 {[%clk 0:02:11]} 19. exd5 {[%clk 0:02:25]}  Bh4 {[%clk 0:02:11]} 20. g3 {[%clk 0:02:23]}  Bf6 {[%clk 0:02:11]} 21. c4 {[%clk 0:02:12]}  f4 {[%clk 0:02:01]} 22. Re1 {[%clk 0:02:10]}  fxg3 {[%clk 0:01:50]} 23. hxg3 {[%clk 0:02:09]}  Bg7 {[%clk 0:01:30]} 24. Qg4+ {[%clk 0:02:07]}  Kb8 {[%clk 0:01:26]} 25. Rxf8+ {[%clk 0:02:06]}  Bxf8 {[%clk 0:01:27]} 26. Qxg6 {[%clk 0:02:05]} 1-0


[Site "https://www.chess.com"]

[Event "Titled Tuesday Blitz April 4 Early 2023"]
[White "KorolDimitriy75"]
[Black "Fuzesabonyilaci"]
[WhiteElo "2447"]
[BlackElo "2306"]
[Result "0-1"]
[Round "07"]
[TimeControl "180+2"]
[Date "2023.04.04"]
[WhiteClock "0:00:01"]
[BlackClock "0:00:19"]

1. d4 {[%clk 0:03:00]}  e6 {[%clk 0:02:54]} 2. c4 {[%clk 0:03:00]}  d5 {[%clk 0:02:54]} 3. Nc3 {[%clk 0:03:00]}  Nf6 {[%clk 0:02:47]} 4. Bg5 {[%clk 0:03:00]}  dxc4 {[%clk 0:02:39]} 5. e4 {[%clk 0:02:55]}  h6 {[%clk 0:02:39]} 6. Bxf6 {[%clk 0:02:52]}  Qxf6 {[%clk 0:02:40]} 7. Bxc4 {[%clk 0:02:50]}  Bb4 {[%clk 0:02:32]} 8. Nf3 {[%clk 0:02:35]}  O-O {[%clk 0:02:21]} 9. O-O {[%clk 0:02:31]}  Bxc3 {[%clk 0:02:10]} 10. bxc3 {[%clk 0:02:30]}  b6 {[%clk 0:02:11]} 11. Qe2 {[%clk 0:02:17]}  Bb7 {[%clk 0:02:10]} 12. Ne5 {[%clk 0:02:07]}  Qe7 {[%clk 0:02:02]} 13. Rfe1 {[%clk 0:02:04]}  Nd7 {[%clk 0:02:02]} 14. Nxd7 {[%clk 0:01:56]}  Qxd7 {[%clk 0:02:03]} 15. Rad1 {[%clk 0:01:56]}  Qe7 {[%clk 0:01:55]} 16. h3 {[%clk 0:01:43]}  Rad8 {[%clk 0:01:50]} 17. Ba6 {[%clk 0:01:29]}  Bxa6 {[%clk 0:01:46]} 18. Qxa6 {[%clk 0:01:30]}  c6 {[%clk 0:01:47]} 19. a4 {[%clk 0:01:10]}  Qc7 {[%clk 0:01:40]} 20. Rd3 {[%clk 0:00:49]}  Rfe8 {[%clk 0:01:23]} 21. Red1 {[%clk 0:00:48]}  Re7 {[%clk 0:01:14]} 22. c4 {[%clk 0:00:22]}  Qf4 {[%clk 0:01:10]} 23. f3 {[%clk 0:00:06]}  Red7 {[%clk 0:01:05]} 24. Kh1 {[%clk 0:00:06]}  Qf6 {[%clk 0:00:53]} 25. d5 {[%clk 0:00:06]}  exd5 {[%clk 0:00:51]} 26. cxd5 {[%clk 0:00:07]}  cxd5 {[%clk 0:00:51]} 27. exd5 {[%clk 0:00:08]}  Qe5 {[%clk 0:00:47]} 28. d6 {[%clk 0:00:07]}  Qc5 {[%clk 0:00:29]} 29. Qb5 {[%clk 0:00:06]}  Qxb5 {[%clk 0:00:29]} 30. axb5 {[%clk 0:00:07]}  f6 {[%clk 0:00:21]} 31. Kg1 {[%clk 0:00:06]}  Kf7 {[%clk 0:00:21]} 32. Kf2 {[%clk 0:00:06]}  Rc8 {[%clk 0:00:21]} 33. Kg3 {[%clk 0:00:05]}  Rc5 {[%clk 0:00:21]} 34. Rb3 {[%clk 0:00:02]}  Ke6 {[%clk 0:00:20]} 35. Re3+ {[%clk 0:00:01]}  Re5 {[%clk 0:00:19]} 0-1


[Site "https://www.chess.com"]

[Event "Titled Tuesday Blitz April 4 Early 2023"]
[White "Kubatko, Ivan"]
[Black "Kohler, Aran"]
[WhiteFideId "24111473"]
[BlackFideId "1002856"]
[WhiteElo "2285"]
[BlackElo "2300"]
[Result "1-0"]
[Round "07"]
[TimeControl "180+2"]
[Date "2023.04.04"]
[WhiteClock "0:00:04"]
[BlackClock "0:00:03"]

1. e4 {[%clk 0:03:00]}  c6 {[%clk 0:02:59]} 2. d4 {[%clk 0:03:00]}  d5 {[%clk 0:03:00]} 3. exd5 {[%clk 0:03:01]}  cxd5 {[%clk 0:03:00]} 4. c4 {[%clk 0:03:01]}  Nf6 {[%clk 0:02:54]} 5. Nc3 {[%clk 0:03:01]}  Nc6 {[%clk 0:02:54]} 6. Bg5 {[%clk 0:03:01]}  e6 {[%clk 0:02:45]} 7. Nf3 {[%clk 0:02:56]}  Be7 {[%clk 0:02:44]} 8. Bd3 {[%clk 0:02:52]}  dxc4 {[%clk 0:02:43]} 9. Bxc4 {[%clk 0:02:53]}  Nd5 {[%clk 0:02:37]} 10. Bxe7 {[%clk 0:02:35]}  Ncxe7 {[%clk 0:02:30]} 11. O-O {[%clk 0:02:34]}  O-O {[%clk 0:02:30]} 12. Ne5 {[%clk 0:02:27]}  Nxc3 {[%clk 0:02:27]} 13. bxc3 {[%clk 0:02:26]}  Ng6 {[%clk 0:02:28]} 14. f4 {[%clk 0:02:06]}  Bd7 {[%clk 0:02:21]} 15. Qf3 {[%clk 0:01:49]}  Rc8 {[%clk 0:02:20]} 16. Bb3 {[%clk 0:01:36]}  Nxe5 {[%clk 0:02:09]} 17. fxe5 {[%clk 0:01:37]}  Bc6 {[%clk 0:02:07]} 18. Qg3 {[%clk 0:01:36]}  g6 {[%clk 0:02:03]} 19. Rf6 {[%clk 0:01:21]}  Be4 {[%clk 0:01:53]} 20. Re1 {[%clk 0:01:09]}  Bf5 {[%clk 0:01:45]} 21. d5 {[%clk 0:01:01]}  Qb6+ {[%clk 0:01:35]} 22. Kh1 {[%clk 0:01:01]}  Qa5 {[%clk 0:01:23]} 23. Re3 {[%clk 0:00:56]}  Qa3 {[%clk 0:01:10]} 24. h4 {[%clk 0:00:50]}  Qc1+ {[%clk 0:01:02]} 25. Kh2 {[%clk 0:00:50]}  Kh8 {[%clk 0:00:18]} 26. h5 {[%clk 0:00:20]}  Rg8 {[%clk 0:00:15]} 27. h6 {[%clk 0:00:20]}  Rgf8 {[%clk 0:00:13]} 28. dxe6 {[%clk 0:00:14]}  fxe6 {[%clk 0:00:13]} 29. Bxe6 {[%clk 0:00:11]}  Bxe6 {[%clk 0:00:10]} 30. Rxe6 {[%clk 0:00:08]}  Rc4 {[%clk 0:00:10]} 31. Rf6 {[%clk 0:00:05]}  Re8 {[%clk 0:00:08]} 32. Ref3 {[%clk 0:00:04]}  Qa3 {[%clk 0:00:06]} 33. e6 {[%clk 0:00:03]}  Qe7 {[%clk 0:00:04]} 34. R3f4 {[%clk 0:00:03]}  Rxf4 {[%clk 0:00:03]} 35. Qxf4 {[%clk 0:00:04]} 1-0


[Site "https://www.chess.com"]

[Event "Titled Tuesday Blitz April 4 Early 2023"]
[White "Omariev, Maksim"]
[Black "Qashashvili, Alexandre"]
[WhiteFideId "4193423"]
[BlackFideId "13600842"]
[WhiteElo "2417"]
[BlackElo "2405"]
[Result "0-1"]
[Round "07"]
[TimeControl "180+2"]
[Date "2023.04.04"]
[WhiteClock "0:00:01"]
[BlackClock "0:00:57"]

1. h4 {[%clk 0:02:50]}  c6 {[%clk 0:03:00]} 2. h5 {[%clk 0:02:51]}  h6 {[%clk 0:03:00]} 3. d4 {[%clk 0:02:51]}  d5 {[%clk 0:03:00]} 4. c3 {[%clk 0:02:50]}  Bf5 {[%clk 0:03:00]} 5. Bf4 {[%clk 0:02:51]}  e6 {[%clk 0:03:00]} 6. e3 {[%clk 0:02:51]}  Bd6 {[%clk 0:03:00]} 7. Ne2 {[%clk 0:02:47]}  Bxf4 {[%clk 0:02:59]} 8. Nxf4 {[%clk 0:02:48]}  Nf6 {[%clk 0:02:59]} 9. Nd2 {[%clk 0:02:46]}  Ne4 {[%clk 0:02:59]} 10. Be2 {[%clk 0:02:42]}  Nxd2 {[%clk 0:02:57]} 11. Qxd2 {[%clk 0:02:43]}  Nd7 {[%clk 0:02:58]} 12. g4 {[%clk 0:02:40]}  Bh7 {[%clk 0:02:57]} 13. O-O {[%clk 0:02:33]}  Nf6 {[%clk 0:02:54]} 14. f3 {[%clk 0:02:05]}  Qd6 {[%clk 0:02:52]} 15. c4 {[%clk 0:02:00]}  O-O {[%clk 0:02:50]} 16. c5 {[%clk 0:02:00]}  Qc7 {[%clk 0:02:49]} 17. Kg2 {[%clk 0:01:54]}  e5 {[%clk 0:02:49]} 18. Nd3 {[%clk 0:01:53]}  e4 {[%clk 0:02:41]} 19. Ne5 {[%clk 0:01:44]}  exf3+ {[%clk 0:02:41]} 20. Bxf3 {[%clk 0:01:45]}  Nd7 {[%clk 0:02:41]} 21. Nd3 {[%clk 0:01:42]}  Nf6 {[%clk 0:02:40]} 22. Nf4 {[%clk 0:01:27]}  Qd7 {[%clk 0:02:29]} 23. Rg1 {[%clk 0:01:20]}  Nxg4 {[%clk 0:02:25]} 24. Kf1 {[%clk 0:01:20]}  Nh2+ {[%clk 0:02:23]} 25. Qxh2 {[%clk 0:01:19]}  Rae8 {[%clk 0:02:14]} 26. Ke2 {[%clk 0:01:18]}  Re7 {[%clk 0:02:10]} 27. Kd2 {[%clk 0:01:18]}  Rfe8 {[%clk 0:02:09]} 28. Rae1 {[%clk 0:01:13]}  Qf5 {[%clk 0:02:09]} 29. Bd1 {[%clk 0:01:05]}  Qb1 {[%clk 0:02:01]} 30. Ke2 {[%clk 0:00:31]}  Qxb2+ {[%clk 0:01:53]} 31. Kf1 {[%clk 0:00:15]}  Qxh2 {[%clk 0:01:51]} 32. Re2 {[%clk 0:00:15]}  Qxf4+ {[%clk 0:01:24]} 33. exf4 {[%clk 0:00:13]}  Bd3 {[%clk 0:01:24]} 34. Rg2 {[%clk 0:00:12]}  Re4 {[%clk 0:01:22]} 35. f5 {[%clk 0:00:04]}  Rf4+ {[%clk 0:01:18]} 36. Ke1 {[%clk 0:00:03]}  Bxe2 {[%clk 0:01:17]} 37. Bxe2 {[%clk 0:00:04]}  Rxf5 {[%clk 0:01:16]} 38. Kd2 {[%clk 0:00:04]}  Rf4 {[%clk 0:01:15]} 39. Kc3 {[%clk 0:00:03]}  Re3+ {[%clk 0:01:12]} 40. Kd2 {[%clk 0:00:02]}  Ree4 {[%clk 0:01:12]} 41. Bd3 {[%clk 0:00:01]}  Rxd4 {[%clk 0:01:12]} 42. Kc3 {[%clk 0:00:02]}  Ra4 {[%clk 0:01:05]} 43. Re2 {[%clk 0:00:03]}  Kf8 {[%clk 0:01:03]} 44. Kb3 {[%clk 0:00:01]}  Rh4 {[%clk 0:00:57]} 45. Bb1 {[%clk 0:00:01]}  Rab4+ {[%clk 0:00:57]} 0-1


[Site "https://www.chess.com"]